fUST/lending_fUST_20240820
["ID","MTS","AMOUNT","RATE_DAILY","PERIOD"]
[335335876,1724122238605,-153.0,0.00015634,2]
[335335878,1724122238617,-153.0,0.00015634,2]
[335335880,1724122238629,-153.0,0.00015634,2]
[335335882,1724122238640,-150.0,0.0001575,2]
[335335884,1724122238652,-1943.99605477,0.00015803,2]
[335336067,1724122240813,-155.27716139,0.00014245,2]
[335336071,1724122240825,-3385.36991036,0.00015803,2]
[335336074,1724122240836,-2000.0,0.0001589,2]
[335336078,1724122240848,-327.033284,0.0001589,2]
[335336080,1724122240860,-151.50865867,0.00015898,2]
[335336082,1724122240871,-153.0,0.000159,2]
[335336084,1724122240882,-153.0,0.000159,2]
[335336087,1724122240893,-153.0,0.000159,2]
[335336089,1724122240905,-3000.15,0.000159,2]
[335336091,1724122240916,-200.0,0.00015973,2]
[335336094,1724122240928,-200.90041029,0.00015973,2]
[335336096,1724122240939,-200.68475046,0.00015973,2]
[335336098,1724122240950,-500.0,0.00015989,2]
[335336101,1724122240962,-500.0,0.00015989,2]
[335336103,1724122240975,-198.97198679,0.00015989,2]
[335336105,1724122240987,-500.0,0.00015989,2]
[335336107,1724122240999,-500.0,0.00015989,2]
[335336110,1724122241011,-269.04062025,0.00015989,2]
[335336112,1724122241023,-630.93463585,0.00015989,2]
[335336114,1724122241035,-31428.19548566,0.0001599,2]
[335336807,1724122502499,622.77204,0.00021,120]
[335336900,1724123438569,-2287.18608415,9.606e-05,2]
[335336902,1724123438579,-322.14641715,0.00012898,2]
[335336904,1724123438589,-591.11767376,0.00012971,2]
[335336906,1724123438598,-3019.8763702,0.00012971,2]
[335336908,1724123438607,-154.76012181,0.00012985,2]
[335336910,1724123438616,-237.1844789,0.00012985,2]
[335336912,1724123438627,-155.4456729,0.00012999,2]
[335336914,1724123438637,-810.66321171,0.00013051,2]
[335336916,1724123438646,-3627.63714642,0.00013148,2]
[335336919,1724123438661,-9158.25144148,0.00013148,2]
[335336921,1724123438674,-553.4448324,0.00013597,2]
[335336923,1724123438684,-174.50757608,0.00013599,2]
[335336925,1724123438695,-194.83065114,0.00013699,2]
[335336928,1724123438706,-250.0,0.00013771,2]
[335336930,1724123438716,-250.0,0.00013809,2]
[335336932,1724123438725,-250.0,0.00013847,2]
[335336934,1724123438736,-250.0,0.00013884,2]
[335336936,1724123438746,-250.0,0.00013922,2]
[335336938,1724123438756,-250.0,0.0001396,2]
[335336940,1724123438767,-250.0,0.00013998,2]
[335336942,1724123438777,-250.0,0.00014036,2]
[335336944,1724123438789,-250.0,0.00014073,2]
[335336947,1724123438800,-250.0,0.00014111,2]
[335336949,1724123438812,-250.0,0.00014149,2]
[335336951,1724123438823,-250.0,0.00014187,2]
[335336953,1724123438835,-250.0,0.00014224,2]
[335336955,1724123438845,-539.677348,0.00014247,2]
[335336957,1724123438855,-250.0,0.00014262,2]
[335336959,1724123438866,-250.0,0.000143,2]
[335336962,1724123438878,-250.0,0.00014338,2]
[335336964,1724123438887,-250.0,0.00014376,2]
[335336966,1724123438898,-250.0,0.00014413,2]
[335336968,1724123438908,-250.0,0.00014451,2]
[335336970,1724123438919,-250.0,0.00014489,2]
[335336972,1724123438930,-200.68475046,0.00014519,2]
[335336974,1724123438939,-153.0,0.00015527,2]
[335336976,1724123438949,-153.0,0.00015527,2]
[335336978,1724123438959,-153.9279791,0.00015527,2]
[335336980,1724123438968,-173.5013981,0.00015527,2]
[335336982,1724123438977,-153.0,0.00015527,2]
[335336984,1724123438986,-2681.15410066,0.000157,2]
[335336986,1724123438995,-5329.36596513,0.00015776,2]
[335336988,1724123439005,-500.0,0.000158,2]
[335336990,1724123439015,-500.0,0.000158,2]
[335336992,1724123439026,-2325.31290093,0.000158,2]
[335336995,1724123439036,-11815.71370991,0.0001589,2]
[335336997,1724123439047,-2000.0,0.0001589,2]
[335336999,1724123439056,-327.033286,0.0001589,2]
[335337001,1724123439066,-5602.68954892,0.00015898,2]
[335337003,1724123439077,-153.0,0.000159,2]
[335337005,1724123439091,-151.50865867,0.000159,2]
[335337007,1724123439100,-500.0,0.000159,2]
[335337009,1724123439110,-25416.11617348,0.0001599,5]
[335337011,1724123439120,-8110.32558894,0.0001599,2]
[335337014,1724123439142,-22913.68168939,0.0001599,2]
[335337172,1724123440972,-817.60790766,0.00012779,2]
[335337173,1724123440983,-43634.18183467,0.0001599,2]
[335337199,1724123443792,-9799.06436524,0.0001599,2]
[335337264,1724124199523,7196.96,7.77e-05,2]
[335337265,1724124214381,7196.96,7.77e-05,2]
[335337266,1724124230694,3472.24991574,7.77e-05,2]
[335337267,1724124239132,206.72970295,7.77e-05,2]
[335337268,1724124298174,19508.23520775,7.77e-05,2]
[335337269,1724124301292,219.46159292,7.77e-05,2]
[335337271,1724124306214,7236.59419718,7.77e-05,2]
[335337272,1724124308568,199.29700215,7.77e-05,2]
[335337274,1724124428218,19508.23520775,7.77e-05,2]
[335337276,1724124458180,19508.23520775,7.77e-05,2]
[335337278,1724124567180,19508.23520775,7.77e-05,2]
[335337346,1724124632819,-19508.23520775,9.418e-05,2]
[335337348,1724124632829,-154.76012181,0.00010958,2]
[335337350,1724124632839,-511.22,0.00010959,2]
[335337352,1724124632849,-201.99260958,0.00011,2]
[335337354,1724124632859,-817.60790766,0.00012779,2]
[335337356,1724124632869,-810.66321171,0.00012782,2]
[335337358,1724124632879,-172.52764061,0.00012991,2]
[335337360,1724124632889,-492.40776625,0.00013497,2]
[335337362,1724124632899,-285.84271001,0.00013597,2]
[335337364,1724124632909,-194.83065114,0.00013699,2]
[335337367,1724124632919,-157.738095,0.0001424,2]
[335337369,1724124632930,-300.0,0.00014246,2]
[335337371,1724124632939,-472.352302,0.00014247,2]
[335337373,1724124632949,-528.601507,0.00014247,2]
[335337375,1724124632960,-4270.0190717,0.00014247,2]
[335337377,1724124632969,-157.738095,0.00014307,2]
[335337378,1724124632979,-157.738095,0.00014375,2]
[335337380,1724124632989,-2346.00983813,0.00014419,2]
[335337382,1724124632999,-157.738095,0.00014442,2]
[335337384,1724124633010,-157.738095,0.0001451,2]
[335337387,1724124633022,-2931.55299835,0.00014519,2]
[335337389,1724124633032,-157.738095,0.00014577,2]
[335337391,1724124633042,-157.738095,0.00014645,2]
[335337392,1724124633052,-157.738095,0.00014712,2]
[335337394,1724124633061,-157.738095,0.00014779,2]
[335337395,1724124633071,-157.738095,0.00014847,2]
[335337396,1724124633082,-157.738095,0.00014914,2]
[335337397,1724124633093,-157.738095,0.00014982,2]
[335337398,1724124633102,-288.83070719,0.00015288,2]
[335337548,1724124641781,-154.90937211,0.00013496,2]
[335337549,1724124641793,-120.12099761,0.00015288,2]
[335337550,1724124641803,-408.9517048,0.00015288,2]
[335337551,1724124641815,-408.9517048,0.00015288,2]
[335337552,1724124641827,-153.0,0.00015527,2]
[335337553,1724124641837,-420.0,0.0001567,2]
[335337554,1724124641847,-336.85917342,0.000157,2]
[335337555,1724124641859,-150.0,0.00015741,2]
[335337556,1724124641870,-5329.36596513,0.00015813,2]
[335337557,1724124641882,-707.6409827,0.0001588,2]
[335337558,1724124642051,-310.681621,0.0001589,2]
[335337559,1724124642063,-151.50865867,0.000159,2]
[335337560,1724124642073,-200.0,0.00015973,2]
[335337561,1724124642083,-200.90041029,0.00015973,2]
[335337562,1724124642094,-201.02618351,0.00015973,2]
[335337563,1724124642104,-230.40926551,0.00015989,2]
[335337564,1724124642117,-154.76012181,0.0001599,2]
[335337565,1724124642128,-171.59526659,0.0001599,2]
[335337566,1724124642138,-1671.98997101,0.0001599,2]
[335337567,1724124642148,-3567.26090371,0.0001599,2]
[335337568,1724124642160,-54724.5789274,0.0001599,2]
[335337569,1724124642172,-179.70688768,0.00015997,2]
[335337570,1724124642183,-5035.7129458,0.00015997,2]
[335337571,1724124642194,-100000.0,0.00016,2]
[335337572,1724124642205,-1079.047918,0.00016,2]
[335337573,1724124642217,-9445.41211076,0.00016,2]
[335337574,1724124642227,-151.50865867,0.00016119,2]
[335337575,1724124642239,-157.234667,0.000163,2]
[335337576,1724124642251,-54724.5789274,0.00016318,2]
[335337577,1724124642261,-160.542164,0.00016318,2]
[335337578,1724124642273,-160.542164,0.00016318,2]
[335337579,1724124642290,-151.0,0.00016318,2]
[335337580,1724124642301,-181.650688,0.00016318,2]
[335337581,1724124642311,-151.0,0.00016318,2]
[335337582,1724124642323,-151.0,0.00016328,2]
[335337583,1724124642336,-151.0,0.00016328,2]
[335337584,1724124642346,-151.0,0.00016328,2]
[335337585,1724124642356,-151.0,0.00016328,2]
[335337586,1724124642367,-153.32301,0.00016328,2]
[335337587,1724124642378,-151.0,0.00016328,2]
[335337588,1724124642388,-151.0,0.00016328,2]
[335337589,1724124642398,-151.0,0.00016328,2]
[335337590,1724124642410,-151.0,0.00016328,2]
[335337591,1724124642421,-151.0,0.00016328,2]
[335337592,1724124642430,-152.383724,0.00016328,2]
[335337593,1724124642439,-151.0,0.00016328,2]
[335337594,1724124642448,-151.0,0.00016338,2]
[335337595,1724124642459,-151.0,0.00016338,2]
[335337596,1724124642473,-151.0,0.00016338,2]
[335337597,1724124642483,-153.0693,0.00016338,2]
[335337598,1724124642494,-151.0,0.00016338,2]
[335337599,1724124642504,-151.50865867,0.00016338,2]
[335337600,1724124642516,-2521.76745231,0.00016338,2]
[335337601,1724124642526,-17193.32720536,0.00016338,2]
[335337602,1724124642536,-306.0,0.00016349,2]
[335337603,1724124642547,-150.112233,0.000164,2]
[335337604,1724124642556,-150.112233,0.000164,2]
[335337605,1724124642565,-151.0,0.00016418,2]
[335337606,1724124642574,-151.0,0.00016418,2]
[335337607,1724124642585,-151.0,0.00016418,2]
[335337608,1724124642595,-269.04062025,0.00016427,2]
[335337609,1724124642604,-500.0,0.00016427,2]
[335337610,1724124642614,-500.0,0.00016427,2]
[335337611,1724124642624,-500.0,0.00016427,2]
[335337612,1724124642635,-500.0,0.00016427,2]
[335337613,1724124642645,-500.0,0.00016427,2]
[335337614,1724124642655,-554.90662264,0.00016427,2]
[335337615,1724124642665,-151.0,0.00016428,2]
[335337616,1724124642677,-151.979301,0.00016428,2]
[335337617,1724124642688,-151.0,0.00016428,2]
[335337618,1724124642698,-151.0,0.00016428,2]
[335337619,1724124642710,-151.0,0.00016428,2]
[335337620,1724124642720,-229.611921,0.00016428,2]
[335337621,1724124642731,-151.0,0.00016428,2]
[335337622,1724124642741,-266.075258,0.00016428,2]
[335337623,1724124642750,-151.0,0.00016428,2]
[335337624,1724124642761,-151.0,0.00016428,2]
[335337625,1724124642775,-151.0,0.00016428,2]
[335337626,1724124642785,-151.0,0.00016428,2]
[335337627,1724124642797,-487.39675,0.00016428,2]
[335337628,1724124642807,-151.0,0.00016428,2]
[335337629,1724124642818,-154.395105,0.00016428,2]
[335337630,1724124642828,-487.39675,0.00016428,2]
[335337631,1724124642840,-442.772779,0.00016428,2]
[335337632,1724124642850,-442.772779,0.00016428,2]
[335337633,1724124642860,-151.0,0.00016428,2]
[335337634,1724124642870,-151.0,0.00016428,2]
[335337635,1724124642880,-323.777779,0.00016428,2]
[335337636,1724124642890,-265.329915,0.00016428,2]
[335337637,1724124642900,-323.777779,0.00016428,2]
[335337638,1724124642912,-265.329915,0.00016428,2]
[335337639,1724124642923,-152.91267,0.00016428,2]
[335337640,1724124642934,-151.0,0.00016428,2]
[335337641,1724124642944,-327.927979,0.00016428,2]
[335337642,1724124642955,-327.927979,0.00016428,2]
[335337643,1724124642966,-206.514162,0.00016428,2]
[335337644,1724124642976,-206.514162,0.00016428,2]
[335337645,1724124642985,-319.897324,0.00016428,2]
[335337646,1724124642996,-206.514162,0.00016428,2]
[335337647,1724124643006,-151.0,0.00016428,2]
[335337648,1724124643016,-206.514162,0.00016428,2]
[335337649,1724124643028,-151.0,0.00016428,2]
[335337650,1724124643039,-319.897324,0.00016428,2]
[335337651,1724124643049,-151.0,0.00016428,2]
[335337652,1724124643059,-160.542164,0.00016428,2]
[335337653,1724124643069,-160.542164,0.00016428,2]
[335337654,1724124643079,-160.542164,0.00016428,2]
[335337655,1724124643090,-160.542164,0.00016428,2]
[335337656,1724124643100,-151.0,0.00016428,2]
[335337657,1724124643112,-151.0,0.00016428,2]
[335337658,1724124643122,-151.0,0.00016428,2]
[335337659,1724124643132,-151.0,0.00016428,2]
[335337660,1724124643143,-151.0,0.00016428,2]
[335337661,1724124643153,-151.0,0.00016428,2]
[335337662,1724124643164,-151.0,0.00016428,2]
[335337663,1724124643175,-151.0,0.00016428,2]
[335337664,1724124643184,-151.0,0.00016428,2]
[335337665,1724124643195,-151.0,0.00016428,2]
[335337666,1724124643206,-817.15581159,0.00016428,2]
[335337667,1724124643221,-55968.92252482,0.00016428,2]
[335337668,1724124643249,-508.05792693,0.00016428,2]
[335337677,1724124644093,-609.51885624,0.00016428,2]
[335337698,1724124647008,-179.70688768,0.00015997,2]
[335337699,1724124647018,-5035.7129458,0.00015997,2]
[335337700,1724124647029,-23331.63579212,0.00016428,2]
[335337709,1724125331168,18099.85093717,0.00017549,20]
[335337713,1724125424252,810.42309767,0.000175,20]
[335338065,1724125837846,-553.21261637,9.134e-05,2]
[335338067,1724125837856,-546.74672462,9.226e-05,2]
[335338069,1724125837866,-2832.40750782,9.701e-05,2]
[335338092,1724125838078,-2663.24837528,9.701e-05,2]
[335338287,1724125840064,-834.77416019,9.701e-05,2]
[335338289,1724125840074,-372.1710556,0.0001,2]
[335338292,1724125840092,-511.22,0.00010959,2]
[335338295,1724125840103,-8843.52115837,0.00012898,2]
[335338297,1724125840114,-810.66321171,0.00012934,2]
[335338299,1724125840124,-810.66321171,0.00012934,2]
[335338301,1724125840134,-154.76012181,0.00012971,2]
[335338303,1724125840144,-6076.68656292,0.00012971,2]
[335338305,1724125840154,-1766.63770101,0.00012999,2]
[335338307,1724125840164,-534.91146023,0.00012999,2]
[335338310,1724125840174,-1613.61724275,0.00012999,2]
[335338313,1724125840184,-1647.12308075,0.00012999,2]
[335338315,1724125840193,-2166.4854483,0.00012999,2]
[335338317,1724125840203,-521.35824671,0.00013051,2]
[335338319,1724125840212,-196.94863729,0.00013333,2]
[335338322,1724125840222,-852.19641213,0.00013333,2]
[335338324,1724125840232,-155.47395437,0.00013477,2]
[335338326,1724125840242,-423.08630861,0.00013477,2]
[335338328,1724125840251,-766.70915519,0.00013477,2]
[335338330,1724125840261,-154.76012181,0.00013477,2]
[335338332,1724125840271,-935.53856084,0.00013477,2]
[335338334,1724125840281,-342.58313088,0.00013477,2]
[335338336,1724125840290,-998.51059661,0.00013496,2]
[335338338,1724125840300,-231.30251125,0.00013496,2]
[335338340,1724125840309,-202.18131812,0.00013496,2]
[335338342,1724125840319,-404.39043971,0.00013496,2]
[335338344,1724125840328,-581.12395525,0.00013496,2]
[335338346,1724125840338,-181.00916175,0.00013496,2]
[335338348,1724125840348,-617.57198018,0.00013496,2]
[335338350,1724125840357,-811.47145884,0.00013496,2]
[335338352,1724125840367,-157.00320308,0.00013496,2]
[335338354,1724125840379,-154.76012181,0.00013496,2]
[335338356,1724125840388,-521.75467235,0.00013496,2]
[335338359,1724125840398,-675.75317293,0.00013496,2]
[335338361,1724125840407,-997.42632145,0.00013496,2]
[335338363,1724125840417,-320.30409158,0.00013496,2]
[335338365,1724125840427,-210.26167047,0.00013497,2]
[335338367,1724125840437,-898.03401982,0.00013497,2]
[335338369,1724125840447,-665.53459983,0.00013497,2]
[335338371,1724125840457,-155.08428983,0.00013497,2]
[335338373,1724125840466,-330.05343314,0.00013497,2]
[335338375,1724125840481,-1351.19093614,0.00013497,2]
[335338377,1724125840491,-688.74575077,0.00013597,2]
[335338379,1724125840501,-301.50555711,0.00013599,2]
[335338381,1724125840510,-310.37961145,0.00013599,2]
[335338383,1724125840521,-194.83065114,0.00013699,2]
[335338385,1724125840530,-184.40655229,0.00013792,2]
[335338387,1724125840539,-495.19490276,0.00013971,2]
[335338389,1724125840549,-750.0,0.00014247,2]
[335338391,1724125840562,-157.99537743,0.00014519,2]
[335338394,1724125840572,-207.6000865,0.00015634,2]
[335338396,1724125840582,-207.5740843,0.00015634,2]
[335338398,1724125840591,-207.5740843,0.00015634,2]
[335338400,1724125840601,-207.5740843,0.00015634,2]
[335338402,1724125840610,-207.5740843,0.00015634,2]
[335338404,1724125840620,-207.5740843,0.00015634,2]
[335338406,1724125840630,-207.5740843,0.00015634,2]
[335338408,1724125840640,-207.5740843,0.00015634,2]
[335338410,1724125840649,-207.5740843,0.00015634,2]
[335338412,1724125840661,-207.5740843,0.00015634,2]
[335338414,1724125840671,-295.147539,0.0001589,2]
[335338416,1724125840680,-5329.36596513,0.00015905,2]
[335338418,1724125840690,-4763.71317153,0.00016,2]
[335338666,1724126244929,249.560659,0.00021,120]
[335338667,1724126251674,500.0,0.00016,30]
[335338668,1724126277206,250.5198171,0.00021,120]
[335338674,1724126601999,151.0,7.77e-05,2]
[335338675,1724126645356,245.39678061,7.77e-05,2]
[335338676,1724126647451,3620.21503602,7.77e-05,2]
[335338678,1724126649235,302.22155329,7.77e-05,2]
[335338679,1724126649792,154.84620557,7.77e-05,2]
[335338680,1724126653213,4721.43026893,7.77e-05,2]
[335338681,1724126654718,2112.67730225,7.77e-05,2]
[335338682,1724126667408,405.4718388,7.77e-05,2]
[335338683,1724126676924,218.74217155,7.77e-05,2]
[335338684,1724126691870,9043.73150202,7.77e-05,2]
[335338685,1724126699281,19508.23520775,7.77e-05,2]
[335338686,1724126699441,2926.18841505,7.77e-05,2]
[335338687,1724126706783,939.08236877,7.77e-05,2]
[335338688,1724126709579,192.80679477,7.77e-05,2]
[335338689,1724126739721,2112.67730225,7.77e-05,2]
[335338690,1724126743844,377.32383277,7.77e-05,2]
[335338691,1724126754211,4725.95593576,7.77e-05,2]
[335338692,1724126763412,405.4718388,7.77e-05,2]
[335338693,1724126769441,3620.21503602,7.77e-05,2]
[335338694,1724126769486,218.74217155,7.77e-05,2]
[335338695,1724126777445,3620.21503602,7.77e-05,2]
[335338696,1724126795303,19508.23520775,7.77e-05,2]
[335338697,1724126800779,939.08236877,7.77e-05,2]
[335338699,1724126831740,2112.67730225,7.77e-05,2]
[335338700,1724126854927,405.4718388,7.77e-05,2]
[335338701,1724126870467,217.55707659,7.77e-05,2]
[335338702,1724126886451,3620.21503602,7.77e-05,2]
[335338703,1724126897885,5604.19479331,7.77e-05,2]
[335338704,1724126898799,465.45760021,7.77e-05,2]
[335338705,1724126902306,19508.23520775,7.77e-05,2]
[335338706,1724126909804,19508.23520775,7.77e-05,2]
[335338711,1724126922764,727.42986891,7.77e-05,2]
[335338718,1724126942929,267.51428037,7.77e-05,2]
[335338723,1724126999458,356.97805824,7.77e-05,2]
[335338724,1724127012305,10874.87631279,7.77e-05,2]
[335338892,1724127040334,-6612.12591735,7.77e-05,2]
[335338893,1724127040344,-3420.30152347,8.023e-05,2]
[335338894,1724127040353,-245.0,8.104e-05,2]
[335338895,1724127040363,-1199.9013761,8.186e-05,2]
[335338896,1724127040372,-167.0635459,8.27e-05,2]
[335338897,1724127040381,-2382.8271525,8.302e-05,2]
[335338898,1724127040390,-154.88674776,8.532e-05,2]
[335338899,1724127040401,-197.50730199,8.532e-05,2]
[335338900,1724127040410,-300.0,8.76e-05,2]
[335338901,1724127040419,-300.0,8.76e-05,2]
[335338902,1724127040428,-223.49558008,8.761e-05,2]
[335338903,1724127040438,-206.59847366,8.761e-05,2]
[335338904,1724127040447,-197.33180704,8.761e-05,2]
[335338905,1724127040456,-423.08630861,8.761e-05,2]
[335338906,1724127040466,-269.30671021,8.761e-05,2]
[335338907,1724127040475,-176.12678073,8.761e-05,2]
[335338908,1724127040484,-156.54329425,8.761e-05,2]
[335338909,1724127040493,-181.75712073,8.761e-05,2]
[335338910,1724127040502,-157.44012948,8.769e-05,2]
[335338911,1724127040511,-188.90271941,8.769e-05,2]
[335338912,1724127040520,-4270.0190717,8.793e-05,2]
[335338913,1724127040530,-289.08113739,8.793e-05,2]
[335338914,1724127040539,-240.2347681,8.793e-05,2]
[335338915,1724127040550,-154.79103211,8.793e-05,2]
[335338916,1724127040559,-154.80649189,8.861e-05,2]
[335338917,1724127040568,-420.0,9.636e-05,2]
[335338918,1724127040577,-810.66321171,9.999e-05,2]
[335338919,1724127040587,-810.66321171,9.999e-05,2]
[335338920,1724127040596,-24900.0,0.00010382,2]
[335338921,1724127040605,-154.76012181,0.00010544,2]
[335338922,1724127040615,-601.94985179,0.00010958,2]
[335338923,1724127040624,-511.22,0.00010959,2]
[335338924,1724127040633,-5190.49727346,0.00011987,2]
[335338951,1724127046075,-8843.52115837,8.521e-05,2]
[335338952,1724127046085,-308.24104232,8.532e-05,2]
[335338953,1724127046096,-155.00709621,8.761e-05,2]
[335338954,1724127046106,-210.26167047,0.00011999,2]
[335338955,1724127046116,-157.738095,0.00012178,2]
[335338956,1724127046126,-157.738095,0.00012236,2]
[335338957,1724127046139,-500.0,0.00012293,2]
[335338958,1724127046151,-157.738095,0.00012294,2]
[335338959,1724127046166,-157.738095,0.00012351,2]
[335338960,1724127046178,-157.738095,0.00012409,2]
[335338961,1724127046189,-157.738095,0.00012467,2]
[335338962,1724127046199,-2166.4854483,0.00012516,2]
[335338963,1724127046211,-157.738095,0.00012525,2]
[335338964,1724127046220,-1647.12308075,0.00012551,2]
[335338965,1724127046231,-1613.61724275,0.00012551,2]
[335338966,1724127046240,-157.738095,0.00012582,2]
[335338967,1724127046251,-2128.24653365,0.00012629,2]
[335338968,1724127046260,-157.738095,0.0001264,2]
[335338969,1724127046269,-157.738095,0.00012698,2]
[335338970,1724127046279,-157.738095,0.00012755,2]
[335338971,1724127046288,-817.60790766,0.00012779,2]
[335338972,1724127046297,-811.47145884,0.00012782,2]
[335338973,1724127046307,-157.738095,0.00012813,2]
[335338974,1724127046316,-342.6945234,0.00012898,2]
[335338975,1724127046327,-320.30409158,0.00012898,2]
[335338976,1724127046336,-285.84271001,0.00012898,2]
[335338977,1724127046346,-2346.00983813,0.000129,2]
[335338978,1724127046355,-201.99260958,0.00012934,2]
[335338979,1724127046365,-492.40776625,0.00012971,2]
[335338980,1724127046375,-534.91146023,0.00012971,2]
[335338981,1724127046384,-1766.63770101,0.00012971,2]
[335338982,1724127046393,-521.35824671,0.00012971,2]
[335338983,1724127046403,-665.53459983,0.00012971,2]
[335338984,1724127046412,-665.53459983,0.00012971,2]
[335338985,1724127046421,-898.03401982,0.00012971,2]
[335338986,1724127046430,-155.08428983,0.00012985,2]
[335338987,1724127046439,-852.19641213,0.00012989,2]
[335338988,1724127046448,-728.8710597,0.00012989,2]
[335338989,1724127046458,-6076.68656292,0.00012989,2]
[335338990,1724127046467,-675.75317293,0.00012989,2]
[335338991,1724127046476,-180.81152876,0.00012991,2]
[335338992,1724127046486,-194.56903505,0.00012999,2]
[335338993,1724127046495,-194.56903505,0.00012999,2]
[335338994,1724127046505,-581.12395525,0.00012999,2]
[335338995,1724127046514,-766.70915519,0.00012999,2]
[335338996,1724127046524,-231.30251125,0.00012999,2]
[335338997,1724127046532,-157.00320308,0.00012999,2]
[335338998,1724127046541,-200.0,0.00013,2]
[335338999,1724127046552,-330.05343314,0.00013,2]
[335339000,1724127046562,-404.39043971,0.00013025,2]
[335339001,1724127046571,-202.18131812,0.00013051,2]
[335339002,1724127046580,-998.51059661,0.00013051,2]
[335339003,1724127046589,-196.94863729,0.00013051,2]
[335339004,1724127046599,-301.50555711,0.00013051,2]
[335339005,1724127046609,-155.47395437,0.00013333,2]
[335339006,1724127046618,-308.87373714,0.00013477,2]
[335339007,1724127046626,-933.89722372,0.00013496,2]
[335339008,1724127046635,-520.67910379,0.00013497,2]
[335339009,1724127046645,-520.67910379,0.00013497,2]
[335339010,1724127046654,-310.37961145,0.00013597,2]
[335339011,1724127046663,-184.40655229,0.00013597,2]
[335339012,1724127046673,-495.19490276,0.00013599,2]
[335339013,1724127046682,-157.99537743,0.00013688,2]
[335339014,1724127046692,-194.83065114,0.00013699,2]
[335339015,1724127046701,-155.05311129,0.00013971,2]
[335339016,1724127046710,-750.0,0.00014247,2]
[335339017,1724127046719,-2346.00983806,0.00014293,2]
[335339018,1724127046729,-400.0,0.0001437,2]
[335339019,1724127046738,-153.0,0.00015068,2]
[335339020,1724127046747,-207.5740843,0.00015634,2]
[335339021,1724127046756,-207.6000865,0.00015634,2]
[335339022,1724127046765,-414.5237581,0.00015634,2]
[335339023,1724127046775,-207.5740843,0.00015634,2]
[335339024,1724127046784,-167.45698489,0.00015678,2]
[335339025,1724127046794,-207.5740843,0.00015678,2]
[335339026,1724127046807,-207.5740843,0.00015678,2]
[335339027,1724127046818,-207.5740843,0.00015678,2]
[335339028,1724127046827,-209.8622802,0.00015678,2]
[335339029,1724127046837,-207.5740843,0.00015678,2]
[335339030,1724127046850,-207.5740843,0.00015678,2]
[335339031,1724127046860,-370.9184708,0.00015678,2]
[335339032,1724127046869,-5329.36596513,0.00015786,2]
[335339033,1724127046880,-47988.8026153,0.00015795,2]
[335339034,1724127046890,-1415.0,0.00015805,2]
[335339035,1724127046901,-7726.0,0.00015805,2]
[335339036,1724127046911,-290.49482723,0.00015808,2]
[335339037,1724127046922,-477.13204914,0.0001584,2]
[335339038,1724127046932,-295.14754,0.0001589,2]
[335339039,1724127046943,-5254.64042847,0.00016,2]
[335339040,1724127046953,-500.0,0.00016,2]
[335339041,1724127046964,-2000.0,0.00016,2]
[335339042,1724127046974,-817.9034096,0.0001611,2]
[335339043,1724127046984,-100000.0,0.00016163,2]
[335339044,1724127046993,-2269.59070707,0.00016338,2]
[335339045,1724127047002,-207.5740843,0.00016349,2]
[335339046,1724127047012,-207.5740843,0.00016349,2]
[335339047,1724127047021,-207.5740843,0.00016349,2]
[335339048,1724127047030,-207.5740843,0.00016349,2]
[335339049,1724127047040,-207.5740843,0.00016349,2]
[335339050,1724127047052,-207.6000865,0.00016349,2]
[335339051,1724127047061,-369.83680192,0.00016373,2]
[335339052,1724127047070,-151.0,0.0001639,2]
[335339053,1724127047264,-253.136694,0.0001639,2]
[335339054,1724127047275,-165.21133,0.0001639,2]
[335339055,1724127047284,-165.21133,0.0001639,2]
[335339056,1724127047293,-438.657075,0.0001639,2]
[335339057,1724127047306,-438.657075,0.0001639,2]
[335339058,1724127047320,-287.907591,0.0001639,2]
[335339059,1724127047330,-287.907591,0.0001639,2]
[335339060,1724127047339,-47988.8026153,0.0001639,2]
[335339061,1724127047348,-151.0,0.0001639,2]